Cogmind - Beta 13 @@@ ROGUE MODE // 2024.06.09 @ 04:51:59 Player: Bingus Khan Result: Self-destructed Performance ------------- Evolutions (2) 1000 Regions Visited (3) 600 Robots Destroyed (21) 105 Value Destroyed (565) 565 Prototype IDs (0) 0 Alien Tech Used (0) 0 Bonus (0) 0 TOTAL SCORE: 2270 Bonus ------- None Cogmind --------- Core Integrity 550/550 Matter 247/300 Energy 41/250 System Corruption 0% Temperature Cool (0) Movement Walking (120) Location -8/Materials Parts ------- > --- POWER (1) -------- Ion Engine > --- PROPULSION (3) --- Aluminum Leg Aluminum Leg Aluminum Leg > --- UTILITY (5) ------ Improved Heat Sink Medium Storage Unit Advanced Weight Redist. System Machine Analyzer Long-range Tractor Beam > --- WEAPON (2) ------- Beam Rifle Heavy Assault Rifle > --- INVENTORY (10) --- Ion Engine Ion Engine Aluminum Leg Heat Sink Tractor Beam EM Pulse Gun Small Laser Assault Rifle Light Assault Rifle Rocket Launcher Peak State ------------ > --- POWER ------------ Ion Engine > --- PROPULSION ------- Aluminum Leg Aluminum Leg Aluminum Leg > --- UTILITY ---------- Improved Heat Sink Medium Storage Unit Advanced Weight Redist. System Machine Analyzer Long-range Tractor Beam > --- WEAPON ----------- Beam Rifle Heavy Assault Rifle > --- INVENTORY -------- Ion Engine Ion Engine Aluminum Leg Heat Sink Tractor Beam EM Pulse Gun Small Laser Assault Rifle Light Assault Rifle Rocket Launcher [Rating: 22] Favorites ----------- Power Ion Engine Engine Ion Engine Propulsion Aluminum Leg Leg Aluminum Leg Wheel Compact Wheel Utility Medium Storage Unit Device Heat Sink Storage Medium Storage Unit Processor Machine Analyzer Weapon Assault Rifle Energy Gun Beam Rifle Ballistic Gun Assault Rifle Build | -11 -10 -9 -8 ------- Run | Yrd Mat Mat Mat Slots Evolved 4 | . . 2 2 Power . | . . . . Propulsion 1 | . . . 1 Utility 3 | . . 2 1 Weapon . | . . . . Parts Attached 37 | 6 16 10 5 Power 5 | 1 2 2 . Engine 5 | 1 2 2 . Core . | . . . . Reactor . | . . . . Propulsion 8 | 2 3 2 1 Treads . | . . . . Leg 5 | . 2 2 1 Wheel 3 | 2 1 . . Hover . | . . . . Flight . | . . . . Utility 14 | 1 6 3 4 Device 11 | . 4 3 4 Storage 2 | 1 1 . . Processor 1 | . 1 . . Hackware . | . . . . Protection . | . . . . Artifact . | . . . . Weapon 10 | 2 5 3 . Energy Gun 2 | 1 . 1 . Energy Cannon . | . . . . Ballistic Gun 8 | 1 5 2 . Ballistic Cannon . | . . . . Launcher . | . . . . Special Weapon . | . . . . Impact Weapon . | . . . . Slashing Weapon . | . . . . Piercing Weapon . | . . . . Special Melee Weapon . | . . . . Unidentified Prototypes . | . . . . Parts Lost 7 | . 7 . . Power 2 | . 2 . . Propulsion 1 | . 1 . . Utility 2 | . 2 . . Weapon 2 | . 2 . . Highest Loss Streak 3 | . 3 . . To Critical Strikes . | . . . . Average Slot Usage (%) 95 | . 90 98 100 Engine 11 | . 13 11 9 Leg 17 | . 12 22 27 Wheel 7 | . 15 . . Device 14 | . 5 21 27 Storage 12 | . 14 11 9 Processor 6 | . . 11 9 Energy Gun 6 | . 2 8 9 Ballistic Gun 17 | . 23 13 9 Naked Turns . | . . . . Heaviest Build 24 | 11 21 23 24 Greatest Support 39 | 26 32 20 39 Greatest Overweight (x) 1 | . . 1 . Average Overweight (x) . | . . . . Largest Inventory Capacity 10 | 8 10 10 10 Average Capacity 9 | 7 9 10 10 Most Carried 10 | 4 7 10 10 Average Carried 6 | 3 4 8 8 Final Capacity 10 | 8 10 10 10 Final Carried 10 | 4 6 10 10 Class Distribution -------------------- 52% | Mutant 47% | Scavenger-Mutant Dominant Class ---------------- Mutant | -10/Materials Scavenger-Mutant | -9/Materials Scavenger-Mutant | -8/Materials Resources | -11 -10 -9 -8 ----------- Run | Yrd Mat Mat Mat Matter Collected 752 | 208 359 185 . Remotely 218 | . 33 185 . Salvage Created 768 | . 484 284 . Parts 47 | . 29 18 . Haulers Intercepted . | . . . . Recyclers Shooed 1 | . 1 . . Parts Field Recycled . | . . . . Retrieved Matter . | . . . . Parts Self-Destructed . | . . . . Prevented . | . . . . Kills | -11 -10 -9 -8 ------- Run | Yrd Mat Mat Mat Combat Hostiles Destroyed 18 | . 10 8 . Guns 18 | . 10 8 . Classes Destroyed 5 | . 4 1 . Recycler 2 | . 2 . . Mechanic 1 | . 1 . . Swarmer 4 | . 2 2 . Grunt 13 | . 8 5 . Sentry 1 | . . 1 . Best Kill Streak 4 | . 4 4 . Combat Bots Only 4 | . 3 4 . Max Kills in Single Turn 2 | . 2 1 . Gunslinging . | . . . . Exploded . | . . . . Melee . | . . . . Uniques/NPCs Destroyed . | . . . . Combat | -11 -10 -9 -8 -------- Run | Yrd Mat Mat Mat Hostile Shots Fired 123 | . 91 32 . Missed 30 | . 22 8 . Damage Taken 1039 | . 824 215 . Core 181 | . 153 28 . Absorbed by Shields . | . . . . Core Remaining (%) 77 | 100 38 93 . Volleys Fired 62 | . 51 10 1 Largest 2 | . 2 2 2 Hottest 79 | . 60 79 79 Shots Fired 117 | . 95 20 2 Gun 117 | . 95 20 2 Cannon . | . . . . Launcher . | . . . . Special . | . . . . Kinetic 95 | . 82 12 1 Thermal 22 | . 13 8 1 Explosive . | . . . . Electromagnetic . | . . . . Robot Hit Streak 7 | . 7 6 1 Robot Miss Streak 4 | . 4 1 1 Penetration Max . | . . . . Secondary Targets 1 | . 1 . . Max Gunslinging Chain 1 | . 1 . . Shots Hit Robots 76 | . 61 14 1 Core Hits 36 | . 24 11 1 Critical Kills . | . . . . Critical Parts Destroyed 1 | . 1 . . Critical Strikes 1 | . 1 . . Destroy 1 | . 1 . . Melee Attacks . | . . . . Impact . | . . . . Slashing . | . . . . Piercing . | . . . . Sneak Attacks . | . . . . Combat Hostiles . | . . . . Follow-up Attacks . | . . . . Damage Inflicted 983 | . 757 212 14 Guns 975 | . 754 207 14 Cannons . | . . . . Explosions . | . . . . Melee . | . . . . Ramming 8 | . 3 5 . Kinetic 801 | . 653 134 14 Thermal 174 | . 101 73 . Explosive . | . . . . Electromagnetic . | . . . . Impact . | . . . . Slashing . | . . . . Piercing . | . . . . Highest Corruption . | . . . . Average Corruption . | . . . . Corruption Purged . | . . . . Corruption Blocked . | . . . . Overload Shots . | . . . . Overflow Damage . | . . . . Projectiles . | . . . . Explosions . | . . . . Melee . | . . . . Knockbacks . | . . . . Impact . | . . . . Kinetic . | . . . . Secondary . | . . . . Self-Inflicted Damage 1 | . 1 . . Shots . | . . . . Rammed 1 | . 1 . . Targets Rammed 2 | . 1 1 . Kicked 1 | . . 1 . Crushed . | . . . . Highest Temperature 36 | . 36 . . Average Temperature 15 | . 15 . . Received Heat Transfer 483 | . 444 39 . Siege Activations . | . . . . Robots Corrupted . | . . . . Combat Hostiles . | . . . . Parts Fried . | . . . . Impact Corruptions . | . . . . Robots Melted . | . . . . Combat Hostiles . | . . . . Parts Melted 1 | . 1 . . Heat Transferred 410 | . 225 185 . Parts Sabotaged . | . . . . Parts Stolen . | . . . . Parts Stripped . | . . . . Power Chain Reactions . | . . . . Alert | -11 -10 -9 -8 ------- Run | Yrd Mat Mat Mat Peak Influence 157 | . 156 157 64 Initial 37 | . . 33 37 Average 82 | . 76 103 50 Maximum Alert Level . | . . . . Low Security (%) 100 | 100 100 100 100 Level 1 . | . . . . Level 2 . | . . . . Level 3 . | . . . . Level 4 . | . . . . Level 5 . | . . . . High Security . | . . . . Max Security . | . . . . Squads Dispatched 5 | . 3 1 1 Investigation 4 | . 2 1 1 Extermination . | . . . . Reinforcement 1 | . 1 . . Assault . | . . . . Garrison . | . . . . Intercept . | . . . . Searches Triggered . | . . . . Construction Impeded . | . . . . Haulers Reinforced . | . . . . Active Scanning Responses . | . . . . Cargo Convoy Interrupts . | . . . . Stealth | -11 -10 -9 -8 --------- Run | Yrd Mat Mat Mat Distress Signals . | . . . . Communications Jammed . | . . . . Distress Signals . | . . . . Times Spotted 27 | . 17 9 1 Peak Tracking Total 4 | . 4 4 1 Tactical Retreats 2 | . 2 . . Traps | -11 -10 -9 -8 ------- Run | Yrd Mat Mat Mat Traps Triggered 3 | . 2 1 . Indirectly . | . . . . Trap Hack Attempts . | . . . . Triggered . | . . . . Disarmed . | . . . . Reprogrammed . | . . . . Reused . | . . . . Traps Extracted . | . . . . Installed . | . . . . Triggered . | . . . . Machines | -11 -10 -9 -8 ---------- Run | Yrd Mat Mat Mat Machines Disabled . | . . . . Max in Single Turn . | . . . . Machines Repaired . | . . . . Machines Dismantled . | . . . . Machines Sabotaged . | . . . . Overloaded Fab Kills . | . . . . Hacking | -11 -10 -9 -8 --------- Run | Yrd Mat Mat Mat Machines Accessed 10 | . 4 4 2 Terminals 6 | . 3 2 1 Fabricators . | . . . . Repair Stations . | . . . . Recycling Units 2 | . 1 1 . Scanalyzers 2 | . . 1 1 Garrison Access . | . . . . Total Hacks 28 | . 11 13 4 Successful 16 | . 4 10 2 Failed 12 | . 7 3 2 Catastrophic 3 | . 2 . 1 Database Lockouts . | . . . . Manual 14 | . 8 5 1 Terminals 14 | . 7 6 1 Fabricators . | . . . . Repair Stations . | . . . . Recycling Units 7 | . 4 3 . Scanalyzers 7 | . . 4 3 Garrison Access . | . . . . Terminal Hacks 6 | . 2 4 . Record 1 | . . 1 . Alert Level 1 | . . 1 . Unreport Threat 2 | . 2 . . Locate Traps 1 | . . 1 . Zone Layout 1 | . . 1 . Fabricator Hacks . | . . . . Repair Station Hacks . | . . . . Recycling Unit Hacks 2 | . 1 1 . Report Inventory 2 | . 1 1 . Scanalyzer 6 | . . 4 2 Insert Component 3 | . . 2 1 Analyze 3 | . . 2 1 Garrison Access Hacks . | . . . . Unauthorized Hacks 2 | . 1 1 . Terminals . | . . . . Fabricators . | . . . . Repair Stations . | . . . . Recycling Units 2 | . 1 1 . Reject 2 | . 1 1 . Scanalyzers . | . . . . Garrison Access . | . . . . Data Cores Recovered . | . . . . Used . | . . . . Hacking Detections 8 | . 2 4 2 Full Trace Events 2 | . . 1 1 Feedback Events . | . . . . Feedback Blocked . | . . . . Robot Schematics Acquired . | . . . . Robots Built . | . . . . Authchips . | . . . . Time . | . . . . Total Robot Build Rating . | . . . . Part Schematics Acquired 2 | . . 1 1 Parts Built . | . . . . Authchips . | . . . . Time . | . . . . Total Part Build Rating . | . . . . Parts Repaired . | . . . . Time . | . . . . Parts Recycled . | . . . . Recycled Matter . | . . . . Retrieved Matter . | . . . . Retrieved Components . | . . . . Parts Scanalyzed 3 | . . 2 1 Part Schematics Acquired 2 | . . 1 1 Parts Damaged . | . . . . Bothacking | -11 -10 -9 -8 ------------ Run | Yrd Mat Mat Mat Used RIF Installer . | . . . . Robots Hacked . | . . . . Non-combat . | . . . . Combat . | . . . . Robot Hacks Applied . | . . . . Relay Couplers Released . | . . . . Fabnet Peak Effective % . | . . . . Robots Rewired . | . . . . Allies Hacked . | . . . . Hacks Repelled . | . . . . Allies | -11 -10 -9 -8 -------- Run | Yrd Mat Mat Mat Total Allies . | . . . . Largest Group . | . . . . Highest-Rated Group . | . . . . Highest-Rated Ally . | . . . . Total Orders . | . . . . Ally Attacks . | . . . . Total Damage . | . . . . Kills . | . . . . Allies Corrupted . | . . . . Allies Melted . | . . . . Intel | -11 -10 -9 -8 ------- Run | Yrd Mat Mat Mat Robot Analysis Total . | . . . . Derelict Logs Recovered . | . . . . Drone Launches . | . . . . Drone Recoveries . | . . . . Exploration | -11 -10 -9 -8 ------------- Run | Yrd Mat Mat Mat Turns Passed 1458 | 90 613 671 84 Spaces Moved 677 | 41 331 248 57 Core 1 | 1 . . . Treads . | . . . . Legs 468 | . 163 248 57 Wheels 208 | 40 168 . . Hover . | . . . . Flight . | . . . . Fastest Speed 50 | 50 90 120 120 Average Speed 132 | 88 107 177 120 Slowest Speed 190 | 90 120 190 120 Overloaded Moves . | . . . . Propulsion Burnouts . | . . . . Robots Hopped . | . . . . Cave-ins Triggered . | . . . . Exploration Rate (%) 20 | 3 49 23 7 Regions Visited 3 Branch Regions . Pre-discovered Areas . | . . . . Known Exits Taken . | . . . . Unknown Exits Taken 3 | 1 1 1 . Scrap Searched . | . . . . Spaces Dug . | . . . . Terrain Destroyed . | . . . . Melee . | . . . . Projectile . | . . . . AOE . | . . . . Terrain Rammed . | . . . . Walls Destroyed . | . . . . Machines Disabled . | . . . . Actions | -11 -10 -9 -8 --------- Run | Yrd Mat Mat Mat Total 1113 | 91 493 460 69 Wait 308 | 41 85 177 5 Move 674 | 40 330 247 57 Hop . | . . . . Pick Up 14 | 4 4 6 . Fast Attach 15 | 6 7 1 1 Attach 10 | . 5 3 2 Detach 4 | . 2 2 . Swap 12 | . 4 6 2 Drop 12 | . 4 7 1 Fire 62 | . 51 10 1 Melee . | . . . . Ram 1 | . 1 . . Kick 1 | . . 1 . Crush . | . . . . Escape Stasis . | . . . . Rewire . | . . . . Trap . | . . . . Miscellaneous . | . . . . Route ------- -11/Scrapyard -10/Materials -9/Materials -8/Materials History --------- Turn | Location | Event 14 | -11/Scrapyard | Discovered new exit (range 16) 91 | -11/Scrapyard | Entered Materials 292 | -10/Materials | Discovered new exit (range 14) 310 | -10/Materials | Build established: Mutant 472 | -10/Materials | Lost 3 parts (1n1u1w) 634 | -10/Materials | Core integrity fell below 50% 704 | -10/Materials | Entered another Materials area 704 | -9/Materials | Evolved 2 slots: Utility x2 914 | -9/Materials | Discovered new exit (range 10) 1072 | -9/Materials | Build established: Scavenger-Mutant 1375 | -9/Materials | Entered another Materials area 1375 | -8/Materials | Evolved 2 slots: Propulsion x1, Utility x1 1459 | -8/Materials | Self-destructed Last Messages --------------- 01387_ Terminal x3 01397_ Dropped Heat Sink. 01397_ Acquired Adv. Weight Redist. System. 01403_ Connecting with Terminal... 01403_ Current location identified: Materials 01413_ K-01 Serf collects debris. 01416_ >> Machine Analyzer network decryption results: 01416_ Scanalyzer x2 01421_ K-01 Serf collects debris. 01426_ Connecting with Scanalyzer... >>Insert(Aluminum Leg) Scanning Aluminum Leg... Ready to analyze. >>Scanalyze Scanning: Aluminum Leg... Schematic downloaded. 01426_ ALERT: Suspicious activity at Scanalyzer M002. Dispatching Investigation squad. 01426_ K-01 Serf collects debris. Map ----- +----------------------------------------------------+ | ?????????????????????????????????????????????????? | | ?????????????????????????????????????????????????? | | ?????????????????????????????????????????????????? | | ?????????????????????????????????????????????????? | | ?????????????????????????????????????????????????? | | ?????????????????????????????????????????????????? | | ?????????????????????????????????????????????????? | | ?????????????????????????????????????????????????? | | ?????????????????????????????????????????????????? | | ?????????????????????????????????????????????????? | | ?????????????????????????????????????????????????? | | ?????????????????????????????????????????????????? | | ?????????????????????????????????????????????????? | | ?????????????????????????????????????????????????? | | ?????????????????????????????????????????????????? | | ?????????????????????????????????????????????????? | | ?????????????###########?????????????????????????? | | ?????????????#|| ! *#?????????????????????????? | | ?????????????#| ########??????????????????? | | ?????????????# ! #[ ! T #??????????????????? | | ?????????????# # #??????????????????? | | ?????????????# # """ #???????"""????????? | | ?????????????# "T" # """ ]#???????"""????????? | | ?????????????# """ # """ ????????"""????????? | | ?????????????# # ?????????????????????? | | ???????###########/######@###### ##????????????? | | ???????# ???????? | | ???????# ???????? | | ???????# ???????? | | ???????#############+##################+#????????? | | ?????????????????# #??????????????????????? | | ?????????????????# """ #??????????????????????? | | ?????????????????# """ #??????????????????????? | | ?????????????????# """ "" #??????????????????????? | | ?????????????????# """#??????????????????????? | | ?????????????????# """ S"#??????????????????????? | | ?????????????????# """ """#??????????????????????? | | ?????????????????# """ """#??????????????????????? | | ?????????????????# #??????????????????????? | | ?????????????????##########??????????????????????? | | ?????????????????????????????????????????????????? | | ?????????????????????????????????????????????????? | | ?????????????????????????????????????????????????? | | ?????????????????????????????????????????????????? | | ?????????????????????????????????????????????????? | | ?????????????????????????????????????????????????? | | ?????????????????????????????????????????????????? | | ?????????????????????????????????????????????????? | | ?????????????????????????????????????????????????? | | ????????????????????T"???????????????????????????? | +----------------------------------------------------+ Best States ------------- Heat Dissipation 51 Energy Generation 10 Energy Capacity 250 Matter Stores 300 Matter Capacity 300 Sight Range 16 Terrain Scan Density 10 Additional Mass Support 9 Evasion (%) 55 Item Schematics ----------------- Assault Rifle | -9/Materials | Scanalyzed Aluminum Leg | -8/Materials | Scanalyzed Robot Schematics ------------------ None Fabricated ------------ Nothing Alien Tech Used ----------------- None Achievements -------------- True Hacker Challenges ------------ None Game ------ Seed StorageConstructPit Manual? 0 Play Time 00:17:19 Cumulative 5.9 hours Start 2024.06.06 @ 03:17:31 End 2024.06.09 @ 04:51:59 Sessions 3 Manual Loads 0 Difficulty Rogue Special Mode None Game No. 11 Rogue 6 Adventurer 5 Explorer 0 Win Type - Total 0 Types 0/0/0/0/0/0/0/0/0 Lore% 4 Gallery% 15 Achievement% 11 Wizard Run 0 Options --------- Layout 1 ASCII 0 Keyboard 0 Movement Mouse Keybinds 0 Fullscreen 1 Font 24/Smallcaps Map View 50x35 Zoom Use 0% Tactical HUD 1 Map Filters NONE Filters NONE Steam 1 RUN: 4a61fab2-1c98-4cf6-84d0-5ba815a9b936